bitfinex/quotes_ETHUSD_20240530
["timestamp","ask_amount","ask_price","bid_price","bid_amount"]
[1717082149388,2.6444,3781.6,3780.5,0.33722454]
[1717082149572,2.3988,3782.4,3780.5,0.07270854]
[1717082149573,2.6446,3781.3,3780.5,0.07270854]
[1717082149776,2.6446,3781.3,3780.0,7.55919014]
[1717082150038,2.64489,3780.9,3780.6,0.07200702]
[1717082150172,2.64489,3780.9,3780.0,6.64560763]
[1717082150380,2.64489,3780.9,3780.7,0.07195917]
[1717082150680,2.64489,3780.9,3780.0,6.64560763]
[1717082150988,3.0,3781.7,3780.0,6.64560763]
[1717082150989,3.0,3781.7,3780.1,0.62427196]
[1717082151184,3.0,3781.6,3780.1,0.69651825]
[1717082151491,2.64471,3781.2,3780.1,0.69651825]
[1717082151685,2.64471,3781.2,3780.2,0.30840671]
[1717082151992,2.64471,3781.2,3780.3,0.07215058]
[1717082152531,2.64493,3780.9,3780.3,0.07215058]
[1717082152813,2.64504,3780.7,3779.5,2.64584]
[1717082153018,2.64504,3780.7,3780.4,0.07210272]
[1717082153313,2.64504,3780.7,3779.7,7.22537139]
[1717082153476,2.64504,3780.7,3779.8,0.98712114]
[1717082153677,2.64504,3780.7,3779.8,1.05956012]
[1717082153882,2.64504,3780.7,3779.8,0.07243898]
[1717082155400,2.64517,3780.5,3779.8,0.07243898]
[1717082158020,2.64529,3780.3,3779.8,0.07243898]
[1717082158542,2.64529,3780.3,3779.9,0.07242741]
[1717082158711,2.64529,3780.3,3779.3,12.43]
[1717082158914,2.64529,3780.3,3779.4,4.07266677]
[1717082159446,2.64529,3780.3,3779.4,0.07266677]
[1717082159745,2.64529,3780.3,3779.2,9.67777139]
[1717082159914,2.64529,3780.3,3779.5,0.07261889]
[1717082160112,2.64529,3780.3,3779.2,10.91015953]
[1717082160638,2.64529,3780.3,3779.3,0.07271465]
[1717082161513,2.64529,3780.3,3779.4,2.6459]
[1717082161847,2.64529,3780.3,3779.2,10.91015953]
[1717082161848,2.64475,3781.1,3779.5,0.07275979]
[1717082162034,2.64445,3781.6,3780.2,2.64533]
[1717082162422,2.64445,3781.6,3780.4,2.64518]
[1717082162745,2.64445,3781.6,3780.6,2.64507]
[1717082162914,2.64445,3781.6,3780.7,2.34589816]
[1717082163252,2.64445,3781.6,3780.8,0.07211199]
[1717082163564,2.64454,3781.4,3780.3,7.22537139]
[1717082163842,2.64428,3781.8,3780.9,0.07186351]
[1717082164014,2.64428,3781.8,3780.7,2.64497]
[1717082164202,2.3977,3782.0,3781.2,2.64464]
[1717082164741,2.3977,3782.0,3781.3,0.07170844]
[1717082166366,2.3977,3782.0,3780.9,3.0]
[1717082166568,2.64386,3782.4,3781.4,0.07166061]
[1717082166732,2.64407,3782.1,3781.0,5.28702914]
[1717082166927,2.64407,3782.1,3781.1,0.07180411]
[1717082167282,2.64431,3781.7,3781.1,0.07180411]
[1717082167507,2.908741,3781.7,3781.1,0.07180411]
[1717082167695,2.64456,3781.4,3781.1,0.07180411]
[1717082168025,2.64456,3781.4,3781.0,4.0]
[1717082168250,2.64456,3781.4,3781.2,0.07167732]
[1717082168566,2.64487,3780.9,3780.8,7.22537139]
[1717082168761,2.64487,3780.9,3779.9,22.09917139]
[1717082168956,2.64487,3780.9,3780.8,0.07186868]
[1717082169135,2.64487,3780.9,3780.1,4.0]
[1717082169334,2.64487,3780.9,3780.8,0.07186868]
[1717082169563,2.64487,3780.9,3780.1,5.36691714]
[1717082169749,2.64487,3780.9,3780.8,0.07186868]
[1717082169950,2.64487,3780.9,3780.1,1.36691714]
[1717082170161,2.64487,3780.9,3780.8,0.07186868]
[1717082170365,2.64487,3780.9,3780.1,1.36691714]
[1717082170672,2.64487,3780.9,3780.8,0.07186868]
[1717082170843,2.64512,3780.6,3779.9,9.66917139]
[1717082171030,2.64512,3780.6,3780.0,4.0]
[1717082171239,2.64512,3780.6,3780.0,0.07225151]
[1717082171572,2.64512,3780.6,3780.0,0.32385666]
[1717082171743,2.64531,3780.3,3780.0,0.07225151]
[1717082171948,2.64531,3780.3,3779.5,7.22537139]
[1717082172148,2.64531,3780.3,3780.1,0.07243627]
[1717082172455,2.64531,3780.3,3779.5,7.22537139]
[1717082172646,2.64531,3780.3,3780.2,0.07238841]
[1717082172849,2.64531,3780.3,3779.5,9.69986053]
[1717082173048,2.64531,3780.3,3780.2,0.07238841]
[1717082173249,2.64531,3780.3,3779.5,9.69986053]
[1717082173575,2.64504,3780.7,3779.5,12.34568053]
[1717082173820,2.64526,3780.4,3779.6,1.17647277]
[1717082175285,2.64497,3780.8,3779.6,1.17647277]
[1717082175565,2.6447,3781.2,3779.8,2.64559]
[1717082175748,0.57185018,3781.1,3780.0,2.64545]
[1717082175953,2.64484,3781.0,3780.1,1.36972272]
[1717082176288,2.64484,3781.0,3780.1,1.44221023]
[1717082176440,0.57184212,3780.9,3780.1,1.44221023]
[1717082176869,2.64494,3780.8,3780.1,1.44221023]
[1717082177089,2.64494,3780.8,3780.1,0.07248751]
[1717082177293,2.64524,3780.4,3780.2,4.0]
[1717082177656,2.64524,3780.4,3780.3,0.0697747]
[1717082178147,2.64548,3780.1,3779.2,4.95242]
[1717082178392,2.64548,3780.1,3779.6,4.0]
[1717082179765,2.64548,3780.1,3779.2,2.3064]
[1717082181595,2.64566,3779.8,3779.2,2.3064]
[1717082181811,2.64566,3779.8,3779.3,4.0]
[1717082182955,2.64566,3779.8,3779.2,4.95200763]
[1717082183297,2.64542,3780.2,3779.2,4.95200763]
[1717082183496,2.64542,3780.2,3779.3,0.93267867]
[1717082185063,2.64542,3780.2,3779.4,0.07038644]
[1717082185272,2.64513,3780.6,3779.7,2.6457]
[1717082185400,2.64485,3781.0,3780.0,2.64548]
[1717082185754,0.57187837,3780.9,3780.1,35.07005135]
[1717082185900,2.64485,3781.0,3780.1,37.37785135]
[1717082186099,2.64485,3781.0,3780.2,2.64560763]
[1717082186405,2.64485,3781.0,3780.3,0.06985983]
[1717082187312,2.64458,3781.4,3780.3,2.76802848]
[1717082187570,0.57180199,3781.3,3780.3,2.71512983]
[1717082187772,2.64458,3781.4,3780.5,2.64512]
[1717082188289,2.64428,3781.8,3780.7,2.645]
[1717082188429,2.64428,3781.8,3780.8,0.32964849]
[1717082188784,2.64428,3781.8,3780.8,0.39901581]
[1717082188990,2.64428,3781.8,3780.8,0.34612796]
[1717082189590,2.64428,3781.8,3781.0,2.64479]
[1717082190129,0.1269685,3782.8,3781.2,2.2749]
[1717082190236,1.92071544,3782.7,3781.6,2.64433]
[1717082190442,0.1269685,3782.8,3781.8,2.2749]
[1717082190743,0.1269685,3782.8,3781.9,37.64416]
[1717082191060,0.1269685,3782.8,3782.1,2.64397]
[1717082191258,0.1269685,3782.8,3782.2,0.05286945]
[1717082191616,0.57149849,3783.4,3782.4,2.2787]
[1717082191744,0.0953636,3783.9,3783.1,2.2787]
[1717082192095,0.0953636,3783.9,3783.2,0.06790502]
[1717082192672,0.0953636,3783.9,3783.3,0.05285467]
[1717082193076,0.0953636,3783.9,3783.4,0.06766278]
[1717082193508,0.0953636,3783.9,3783.1,37.2787]
[1717082193708,0.0953636,3783.9,3783.5,0.06761501]
[1717082193876,0.0953636,3783.9,3783.2,2.38117463]
[1717082194088,0.0953636,3783.9,3783.6,0.06756723]
[1717082194377,0.0953636,3783.9,3783.7,0.06746846]
[1717082194622,0.0953636,3783.9,3782.2,7.0]
[1717082194623,0.0953636,3783.9,3782.6,2.3852]
[1717082194823,0.0953636,3783.9,3783.8,0.06742069]
[1717082195141,0.0953636,3783.9,3782.9,35.0]
[1717082195341,0.0953636,3783.9,3783.0,2.64339]
[1717082195518,0.0953636,3783.9,3783.0,2.71123754]
[1717082195716,0.0953636,3783.9,3783.0,0.06784754]
[1717082195925,2.7382036,3783.9,3783.0,0.06784754]
[1717082196152,0.52932036,3783.8,3782.8,39.0]
[1717082196284,0.52932036,3783.8,3783.1,0.06779975]
[1717082196495,2.7382036,3783.9,3782.8,35.0]
[1717082196818,0.0953636,3783.9,3783.2,2.64326]
[1717082197021,0.0953636,3783.9,3783.3,0.264326]
[1717082197187,0.0953636,3783.9,3783.3,0.33198556]
[1717082198154,0.0953636,3783.9,3783.3,0.06765956]
[1717082198683,0.0953636,3783.9,3782.7,37.64356]
[1717082198921,0.0953636,3783.9,3783.4,0.06761178]
[1717082199124,0.0953636,3783.9,3783.0,2.6434]
[1717082199339,0.0953636,3783.9,3783.5,0.067564]
[1717082199547,0.0953636,3783.9,3783.1,0.55]
[1717082199848,0.0953636,3783.9,3783.2,0.31934]
[1717082200049,0.0953636,3783.9,3783.2,0.38705584]
[1717082201054,0.0953636,3783.9,3783.2,0.06771584]
[1717082201251,0.0953636,3783.9,3782.8,4.0]
[1717082201562,2.7381436,3783.9,3783.3,0.06716622]
[1717082201690,2.7381436,3783.9,3782.8,4.0]
[1717082201897,2.64299,3783.6,3783.4,0.06711845]
[1717082202112,2.64299,3783.6,3782.8,4.0]
[1717082202457,2.64299,3783.6,3782.9,0.06735737]
[1717082202615,2.64299,3783.6,3782.8,4.0]
[1717082202996,2.64299,3783.6,3782.1,2.2945]
[1717082203292,2.64299,3783.6,3782.9,0.06735737]
[1717082203509,2.64326,3783.2,3782.4,7.22537139]
[1717082203946,2.555,3783.2,3782.5,0.06754855]
[1717082204166,3.0,3783.1,3782.5,0.06754855]
[1717082204341,3.1989,3783.0,3782.5,0.06754855]
[1717082204677,2.64371,3782.6,3781.7,7.48980439]
[1717082204880,2.64371,3782.6,3781.8,4.0]
[1717082205024,2.64371,3782.6,3781.8,4.06788322]
[1717082205432,2.64371,3782.6,3781.8,0.06788322]
[1717082205936,2.64371,3782.6,3781.9,0.0678354]
[1717082206451,2.64371,3782.6,3781.4,35.98699614]
[1717082206452,2.64371,3782.6,3782.0,0.06778758]
[1717082206644,2.64371,3782.6,3781.5,4.0]
[1717082206837,0.5555,3783.0,3782.1,0.06773977]
[1717082207051,2.64395,3782.3,3782.1,0.06773977]
[1717082207251,2.64395,3782.3,3781.5,35.0]
[1717082207474,2.64395,3782.3,3782.2,0.06769196]
[1717082207673,2.64395,3782.3,3781.5,35.0]
[1717082207834,2.64395,3782.3,3782.2,0.06769196]
[1717082208038,2.64395,3782.3,3781.5,35.0]
[1717082208250,2.64395,3782.3,3782.2,0.06769196]
[1717082208491,2.64395,3782.3,3781.5,35.0]
[1717082208694,2.64395,3782.3,3782.2,0.06769196]
[1717082208989,2.64395,3782.3,3781.5,35.0]
[1717082209155,2.64395,3782.3,3782.2,0.06769196]
[1717082209478,2.64395,3782.3,3780.9,0.264492]
[1717082209675,2.64395,3782.3,3781.0,4.0]
[1717082209854,2.64395,3782.3,3781.0,4.06856772]
[1717082210258,2.64415,3782.0,3781.0,4.06856772]
[1717082210454,2.64415,3782.0,3781.1,2.64560763]
[1717082210655,2.64415,3782.0,3781.1,0.06658473]
[1717082210882,2.64439,3781.6,3781.1,0.06658473]
[1717082211180,2.6443,3781.8,3781.1,0.06658473]
[1717082211366,2.6443,3781.8,3781.1,0.40665847]
[1717082211608,2.6443,3781.8,3781.2,0.06653689]
[1717082211940,2.6443,3781.8,3780.6,2.64503]
[1717082212143,2.6443,3781.8,3781.3,0.06648906]
[1717082212470,2.6445,3781.5,3781.4,0.06644123]
[1717082212785,2.6445,3781.5,3780.6,7.22537139]
[1717082212941,2.64491,3780.9,3780.2,7.22537139]
[1717082213142,2.64491,3780.9,3780.4,4.0]
[1717082213542,2.64491,3780.9,3780.2,7.22537139]
[1717082213782,2.64491,3780.9,3780.2,7.94790853]
[1717082213980,2.64491,3780.9,3780.2,7.22537139]
[1717082214344,2.64512,3780.6,3779.7,7.22537139]
[1717082214543,2.64512,3780.6,3779.8,4.0]
[1717082215084,2.64512,3780.6,3779.9,0.06715894]
[1717082215384,2.64533,3780.3,3779.9,0.06715894]
[1717082215960,2.555,3780.0,3779.9,0.06715894]
[1717082216297,2.732533,3780.3,3778.7,1.058985]
[1717082216651,2.555,3780.1,3778.7,1.058985]
[1717082216795,2.555,3780.1,3778.8,0.06122202]
[1717082217802,3.0,3780.0,3778.8,0.06122202]
[1717082218007,2.64593,3779.4,3778.8,0.06122202]
[1717082218308,2.64593,3779.4,3778.7,1.058985]
[1717082218794,2.64593,3779.4,3778.8,0.06180992]
[1717082219224,2.64593,3779.4,3778.1,35.0]
[1717082219536,2.64593,3779.4,3778.2,2.64560763]
[1717082220028,2.64593,3779.4,3778.3,0.06204943]
[1717082220332,2.64624,3779.0,3778.3,0.06204943]
[1717082220534,2.64639,3778.8,3778.3,0.06204943]
[1717082220890,2.64639,3778.8,3777.7,2.4245]
[1717082221219,2.64639,3778.8,3777.9,4.0]
[1717082221418,2.64639,3778.8,3777.8,0.06232298]
[1717082221624,2.64639,3778.8,3778.0,0.06222714]
[1717082221836,2.64639,3778.8,3777.7,2.4245]
[1717082222152,2.64639,3778.8,3778.1,0.06217923]
[1717082222288,2.64639,3778.8,3777.5,4.0]
[1717082222791,2.64639,3778.8,3777.6,0.06241882]
[1717082222996,2.64663,3778.4,3777.6,0.06241882]
[1717082223349,2.64663,3778.4,3777.2,37.64741]
[1717082223512,0.49643,3779.0,3777.1,2.434]
[1717082223513,2.6469,3778.1,3777.7,0.0623709]
[1717082223697,2.6469,3778.1,3777.1,7.22537139]
[1717082223698,2.6471,3777.8,3777.1,7.22537139]
[1717082223898,2.6471,3777.8,3776.7,19.65537139]
[1717082224093,2.6471,3777.8,3776.8,37.19744714]
[1717082224320,2.555,3778.6,3776.8,37.19744714]
[1717082224321,2.64732,3777.5,3776.8,37.19744714]
[1717082224561,2.64732,3777.5,3776.9,4.0]
[1717082224739,2.64732,3777.5,3776.7,19.65537139]
[1717082224921,2.64697,3777.9,3776.7,19.65537139]
[1717082225259,2.64697,3777.9,3776.8,37.19744714]
[1717082225863,2.64671,3778.3,3776.9,3.19767]
[1717082226044,2.64671,3778.3,3777.2,2.6474]
[1717082226363,2.64671,3778.3,3777.3,0.26474]
[1717082226551,2.64671,3778.3,3777.4,35.0]
[1717082226858,2.64671,3778.3,3777.5,2.3009]
[1717082227425,2.64671,3778.3,3777.6,35.0]
[1717082228462,2.64643,3778.7,3777.6,35.0]
[1717082228626,2.64643,3778.7,3777.7,1.11609916]
[1717082228827,2.64614,3779.1,3777.9,2.4968]
[1717082229136,2.64614,3779.1,3778.1,35.0]
[1717082229327,2.64587,3779.5,3778.3,2.64669]
[1717082229956,2.64558,3779.9,3778.6,2.64642]
[1717082230263,2.64558,3779.9,3778.7,0.0627283]
[1717082230491,2.64558,3779.9,3778.8,35.0]
[1717082230668,2.64558,3779.9,3778.8,35.06268041]
[1717082230839,2.555,3780.2,3778.8,35.06268041]
[1717082230840,2.64584,3779.6,3778.9,2.64560763]
[1717082231035,2.64584,3779.6,3778.9,2.70824014]
[1717082231242,2.6455,3780.0,3778.9,2.70824014]
[1717082231437,2.6455,3780.0,3779.0,0.26474]
[1717082231771,2.6455,3780.0,3779.0,0.32732462]
[1717082233434,2.555,3780.7,3779.1,2.64609]
[1717082233435,2.64521,3780.5,3779.1,2.64609]
[1717082233630,2.64521,3780.5,3779.1,3.25862673]
[1717082233847,2.64521,3780.5,3779.2,0.66793867]
[1717082234079,2.64521,3780.5,3779.4,2.64587]
[1717082234319,2.555,3781.2,3779.4,2.64587]
[1717082234320,2.64489,3780.9,3779.4,2.64587]
[1717082234493,2.64489,3780.9,3779.6,2.64572]
[1717082234809,2.64459,3781.3,3780.2,2.64535]
[1717082235106,2.64431,3781.7,3780.3,35.0]
[1717082235310,2.64431,3781.7,3780.3,35.55686728]
[1717082236678,2.64431,3781.7,3780.4,2.64519]
[1717082236877,2.64431,3781.7,3780.4,2.70665622]
[1717082237107,2.64431,3781.7,3780.5,0.32015612]
[1717082237308,2.64431,3781.7,3780.6,35.0]
[1717082237513,2.64431,3781.7,3780.6,35.06093107]
[1717082239375,2.64431,3781.7,3780.7,2.64499]
[1717082239910,2.64431,3781.7,3780.8,0.0608184]
[1717082240081,2.64431,3781.7,3780.9,0.27058084]
[1717082240274,2.64431,3781.7,3780.9,0.3313514]
[1717082241116,2.64401,3782.2,3780.9,0.3313514]
[1717082241412,2.64401,3782.2,3781.1,2.3882]
[1717082241721,2.64401,3782.2,3781.3,2.64457]
[1717082242112,2.64368,3782.6,3781.4,0.0603935]
[1717082242516,2.64368,3782.6,3781.5,35.0]
[1717082242694,2.64397,3782.2,3781.5,35.06034355]
[1717082243608,2.64397,3782.2,3781.5,0.06034355]
[1717082243808,2.64437,3781.7,3781.5,0.06034355]
[1717082244132,2.64437,3781.7,3780.9,0.27058084]
[1717082244338,2.64458,3781.4,3780.4,2.4532]
[1717082244506,2.64479,3781.1,3781.0,0.06058271]
[1717082244829,2.64479,3781.1,3780.5,4.0]
[1717082245201,2.64479,3781.1,3781.0,0.05867047]
[1717082245409,2.64479,3781.1,3780.5,4.0]
[1717082245611,2.64479,3781.1,3781.0,0.05867047]
[1717082245933,2.64479,3781.1,3780.2,7.22537139]
[1717082245934,0.519979,3781.1,3780.2,7.22537139]
[1717082246137,2.555,3780.9,3780.2,7.22537139]
[1717082246306,3.0,3780.8,3780.3,0.0591093]
[1717082246631,2.555,3780.9,3780.2,7.22537139]
[1717082246991,2.64497,3780.8,3780.4,0.05906144]
[1717082247214,2.64522,3780.4,3780.3,0.0591093]
[1717082247418,2.64522,3780.4,3779.3,7.22537139]
[1717082247614,2.64522,3780.4,3779.3,7.73274139]
[1717082247806,2.64522,3780.4,3779.4,2.64589]
[1717082248201,2.64496,3780.8,3779.4,2.64589]
[1717082248409,2.64496,3780.8,3779.6,2.64574]
[1717082248933,2.555,3781.4,3779.9,2.64552]
[1717082248934,2.64468,3781.2,3779.9,2.64552]
[1717082249934,2.64492,3780.9,3779.8,7.22537139]
[1717082250243,2.64492,3780.9,3780.0,35.0]
[1717082251011,2.64513,3780.6,3779.9,0.77753714]
[1717082252393,2.64532,3780.3,3779.8,7.22537139]
[1717082252570,2.64532,3780.3,3779.5,5.28063314]
[1717082253474,2.64532,3780.3,3779.5,1.28063314]
[1717082253879,2.64532,3780.3,3779.6,0.90133745]
[1717082254394,2.64503,3780.7,3779.6,0.90133745]
[1717082256487,2.64525,3780.4,3779.6,0.90133745]
[1717082259148,2.64525,3780.4,3779.3,7.73274139]
[1717082259149,2.64545,3780.1,3779.3,7.73274139]
[1717082259391,2.64567,3779.8,3779.3,7.22537139]
[1717082259762,2.6454,3780.2,3779.3,7.22537139]
[1717082259994,2.6454,3780.2,3779.3,9.19090853]
[1717082260164,2.6454,3780.2,3779.4,0.059625]
[1717082261354,2.6456,3779.9,3779.4,0.059625]
[1717082261549,2.64533,3780.3,3779.4,0.059625]
[1717082261753,2.64533,3780.3,3779.5,0.92505335]
[1717082262083,2.64533,3780.3,3779.6,0.05964812]
[1717082263652,5.764384,3780.9,3779.6,0.05964812]
[1717082263854,4.4483341,3780.8,3779.6,0.05964812]
[1717082264098,0.5718957,3780.7,3779.6,0.05964812]
[1717082264658,0.5718957,3780.7,3779.7,35.0]
[1717082264858,0.5718957,3780.7,3779.7,0.05960874]
[1717082265073,2.64546,3780.1,3779.5,0.92505335]
[1717082265299,2.64546,3780.1,3779.8,0.05956087]
[1717082265604,2.64546,3780.1,3779.6,35.0]
[1717082265788,2.64546,3780.1,3779.9,0.059513]
[1717082265960,2.64546,3780.1,3779.6,35.0]
[1717082266160,2.64546,3780.1,3780.0,0.05946513]
[1717082266361,2.64546,3780.1,3779.6,35.68769581]
[1717082266600,2.64546,3780.1,3780.0,0.05946513]
[1717082266764,2.64546,3780.1,3779.3,7.22537139]
[1717082267304,2.64546,3780.1,3779.4,35.05975236]
[1717082267875,2.64546,3780.1,3779.4,0.05975236]
[1717082269394,2.64546,3780.1,3779.4,2.70535999]
[1717082271693,2.64546,3780.1,3779.4,0.05975236]
[1717082271878,2.64546,3780.1,3779.5,35.0]
[1717082272079,2.64546,3780.1,3779.5,35.05985522]
[1717082272423,2.64564,3779.8,3779.5,35.05985522]
[1717082273798,2.64564,3779.8,3779.5,0.05985522]
[1717082274346,2.64564,3779.8,3779.6,0.05980734]
[1717082274497,2.64564,3779.8,3779.4,35.0]
[1717082274700,2.64564,3779.8,3779.7,0.05975947]
[1717082275030,3.2176448,3779.8,3779.4,35.0]
[1717082275177,3.2176448,3779.8,3779.7,0.05975947]
[1717082275382,3.21764512,3779.8,3779.7,0.05975947]
[1717082275590,3.21764512,3779.8,3778.9,3.0]
[1717082275788,2.64564,3779.8,3779.0,36.53125414]
[1717082276032,2.64564,3779.8,3779.0,36.59134877]
[1717082281631,2.64584,3779.6,3779.0,36.59134877]
[1717082282202,2.64584,3779.6,3779.0,1.59134877]
[1717082282406,2.64584,3779.6,3779.1,0.72376188]
[1717082282917,2.64584,3779.6,3779.2,0.05999886]
[1717082285143,4.56299,3779.3,3779.2,0.05999886]
[1717082285318,4.56299,3779.3,3778.7,7.22537139]
[1717082285522,2.64614,3779.1,3778.7,7.22537139]
[1717082286856,2.64627,3778.9,3778.7,7.22537139]
[1717082287120,2.64627,3778.9,3777.9,7.22537139]
[1717082287273,2.64627,3778.9,3777.9,11.22537139]
[1717082287669,2.64627,3778.9,3778.0,35.0]
[1717082287886,2.64627,3778.9,3778.0,37.64560763]
[1717082288475,2.64644,3778.7,3778.0,35.0]
[1717082288666,2.64644,3778.7,3777.9,7.22537139]
[1717082289116,1.917,3778.9,3777.9,7.22537139]
[1717082289278,2.64669,3778.3,3777.9,7.22537139]
[1717082290091,2.64669,3778.3,3778.0,0.05895369]
[1717082291501,3.103059,3778.3,3778.0,0.05895369]
[1717082291702,4.56383,3778.1,3777.1,7.22537139]
[1717082292093,2.64708,3777.8,3777.2,35.0]
[1717082293235,2.64679,3778.2,3777.2,35.0]
[1717082293409,2.64679,3778.2,3777.3,2.64560763]
[1717082293788,2.64679,3778.2,3777.1,7.22537139]
[1717082293987,2.64679,3778.2,3777.2,35.0]
[1717082302573,4.56379,3778.2,3777.2,35.0]
[1717082304611,2.64702,3777.9,3777.2,35.0]
[1717082305164,2.64702,3777.9,3777.3,0.0597034]
[1717082305570,2.64712,3777.7,3777.1,7.22537139]
[1717082305842,2.64712,3777.7,3777.4,0.05965547]
[1717082306017,2.64712,3777.7,3777.1,43.21266453]
[1717082306218,2.64712,3777.7,3777.5,0.05960754]
[1717082306412,2.64712,3777.7,3777.1,7.22537139]
[1717082306914,2.64712,3777.7,3777.2,0.05975133]
[1717082307120,2.64726,3777.5,3777.2,0.05975133]
[1717082307995,2.64746,3777.2,3776.4,7.22537139]
[1717082308203,2.64746,3777.2,3776.5,0.96980714]
[1717082308707,2.64746,3777.2,3776.6,35.0]
[1717082308891,2.64746,3777.2,3776.5,0.96980714]
[1717082309483,2.64746,3777.2,3776.6,35.0]
[1717082309752,2.64746,3777.2,3776.6,37.60847916]
[1717082311263,2.64746,3777.2,3776.6,35.0]
[1717082312301,2.64772,3776.9,3776.4,7.22537139]
[1717082316451,2.64772,3776.9,3776.0,2.64827]
[1717082316659,2.64772,3776.9,3776.4,35.0]
[1717082318361,7.01016,3777.2,3776.4,35.0]
[1717082318632,2.64746,3777.2,3776.4,35.0]
[1717082319568,2.64746,3777.2,3776.2,2.64809]
[1717082320276,2.64746,3777.2,3776.3,35.06063136]
[1717082320488,2.64746,3777.2,3776.4,2.59092216]
[1717082320833,2.64746,3777.2,3776.4,0.0605834]
[1717082321035,2.64725,3777.5,3776.5,37.64794]
[1717082321283,2.64725,3777.5,3776.7,2.64777]
[1717082321479,1.917,3777.8,3776.7,2.64777]
[1717082321660,2.64703,3777.9,3776.8,0.55193096]
[1717082321871,4.56403,3777.9,3776.8,0.55193096]
[1717082322038,4.56403,3777.9,3776.9,35.0]
[1717082322475,4.56403,3777.9,3777.0,0.06017454]
[1717082322980,4.56403,3777.9,3776.8,0.491567]
[1717082323280,4.56403,3777.9,3777.1,35.0601266]
[1717082323461,2.64717,3777.7,3777.1,35.0]
[1717082323669,2.64717,3777.7,3777.2,0.06007866]
[1717082327595,2.64717,3777.7,3776.9,1.26326084]
[1717082327798,2.64717,3777.7,3777.3,0.06002648]
[1717082328120,2.64717,3777.7,3777.0,35.0]
[1717082328121,2.64717,3777.7,3777.4,0.05997855]
[1717082328490,2.64717,3777.7,3777.5,0.05993062]
[1717082328697,2.64717,3777.7,3777.1,1.82345846]
[1717082328898,2.64717,3777.7,3777.6,0.05988269]
[1717082329088,2.64717,3777.7,3777.1,1.82345846]
[1717082329424,2.64717,3777.7,3777.2,0.55164141]
[1717082331433,1.917,3777.9,3777.2,0.55164141]
[1717082333131,4.56369,3778.3,3777.2,0.55164141]
[1717082333429,0.57226754,3778.2,3777.3,2.64738]
[1717082333729,4.56369,3778.3,3777.5,2.64724]
[1717082333930,4.56369,3778.3,3777.6,2.70533939]
[1717082336546,4.56369,3778.3,3777.7,0.05293738]
[1717082336747,4.56344,3778.7,3777.7,2.70674383]
[1717082336929,0.57219308,3778.6,3777.8,0.53523515]
[1717082337243,0.57219308,3778.6,3777.8,0.59487106]
[1717082337397,0.5722051,3778.6,3777.8,0.59487106]
[1717082338409,0.5722051,3778.6,3777.8,0.05963591]
[1717082338410,1.917,3778.3,3777.8,0.05963591]
[1717082338801,1.917,3778.3,3777.4,2.64731]
[1717082339000,1.917,3778.3,3777.9,0.05958799]
[1717082339255,1.917,3778.3,3777.4,2.64731]
[1717082339412,1.917,3778.3,3778.0,0.05954008]
[1717082339742,2.21518392,3778.3,3778.1,0.05949217]
[1717082339893,4.56375,3778.3,3777.4,2.64731]
[1717082340094,4.56375,3778.3,3777.5,0.05977968]
[1717082341111,2.64689,3778.1,3777.5,0.05977968]
[1717082341337,1.917,3777.9,3777.1,15.07752]
[1717082341642,2.64705,3777.8,3777.3,0.05987554]
[1717082341951,2.64705,3777.8,3777.1,2.64752]
[1717082342153,2.64705,3777.8,3777.2,0.05992348]
[1717082342554,2.64705,3777.8,3776.8,7.22537139]
[1717082342701,2.64705,3777.8,3776.9,5.58166943]
[1717082344347,2.64705,3777.8,3776.9,4.06006729]
[1717082345945,2.64705,3777.8,3776.9,0.06006729]
[1717082347904,2.64705,3777.8,3777.0,35.0]
[1717082348248,2.64705,3777.8,3777.1,0.06003518]
[1717082348609,2.64705,3777.8,3776.9,2.6476]
[1717082348839,2.64705,3777.8,3777.2,0.05996599]
[1717082349055,2.64705,3777.8,3777.0,35.98729714]
[1717082349243,1.92285833,3777.7,3777.0,35.98729714]
[1717082349410,1.92285833,3777.7,3777.1,0.06001393]
[1717082351021,2.64682,3778.2,3777.2,2.64745]
[1717082351225,0.57228045,3778.1,3777.2,5.23843916]
[1717082351424,2.64682,3778.2,3777.3,0.05989893]
[1717082351760,2.64682,3778.2,3777.4,0.52983381]
[1717082352320,2.64682,3778.2,3777.5,0.05979244]
[1717082352725,2.64682,3778.2,3777.6,35.0]
[1717082352950,2.64682,3778.2,3777.6,35.05969776]
[1717082353351,2.64656,3778.5,3777.6,35.05969776]
[1717082353560,2.64656,3778.5,3777.7,2.64560763]
[1717082353728,2.64656,3778.5,3777.7,2.70525747]
[1717082355227,2.64632,3778.9,3777.7,2.70525747]
[1717082355438,0.57218799,3778.8,3778.0,2.2851]
[1717082355636,0.57214028,3779.2,3778.1,0.55]
[1717082355838,0.57214028,3779.6,3778.2,0.58351]
[1717082356162,0.57214028,3779.6,3778.3,35.55]
[1717082356468,2.64575,3779.7,3778.4,3.0]
[1717082356943,2.64575,3779.7,3778.7,2.6464]
[1717082357146,2.64575,3779.7,3778.8,35.0]
[1717082357339,2.64575,3779.7,3778.9,2.64560763]
[1717082357728,2.64575,3779.7,3778.8,0.05891671]
[1717082357930,2.64575,3779.7,3779.0,0.05882092]
[1717082358345,2.64575,3779.7,3779.1,0.05877303]
[1717082358683,2.64575,3779.7,3778.8,2.4173]
[1717082358878,2.64575,3779.7,3779.2,0.05872515]
[1717082359175,2.64575,3779.7,3779.3,0.05867727]
[1717082359691,2.64575,3779.7,3779.4,0.05862939]
[1717082360115,2.64575,3779.7,3779.0,2.64560763]
[1717082360259,2.64575,3779.7,3779.5,0.05858151]
[1717082360459,2.64575,3779.7,3778.9,2.64625]
[1717082360675,2.64575,3779.7,3779.6,0.05853363]
[1717082360874,2.64575,3779.7,3778.9,37.64625]
[1717082361095,2.64575,3779.7,3779.6,0.05853363]
[1717082361258,2.64575,3779.7,3779.0,2.64560763]
[1717082361454,2.64575,3779.7,3779.6,0.05853363]